[Event "Chinese League Division-A 2024"]
[Site "Fuling Chongqing"]
[Date "2024.06.28"]
[Round "3.22"]
[White "Xu, Jun"]
[Black "Xu, Minghui"]
[Result "1/2-1/2"]
[ECO "D37"]
[WhiteElo "2471"]
[BlackElo "2388"]
[Annotator "TA"]
[PlyCount "76"]
[EventDate "2024.06.28"]
[EventType "team-tourn"]
[EventCountry "CHN"]
[SourceTitle "playchess.com"]
[Source "ChessBase"]
[SourceQuality "1"]
[TimeControl "40/5400+30:1800+30"]

{[%evp 11,76,27,30,23,24,21,21,31,23,22,25,14,23,12,27,13,18,15,21,0,0,-31,-25,-27,0,0,2,5,5,0,25,0,0,0,0,-5,0,0,-3,-16,-5,-25,0,0,0,-19,0,0,0,-3,0,0,0,0,0,0,0,0,0,0,0,0,0,0,0,0,0]} 1. d4 {[%emt 0:00:04]} Nf6 {[%emt 0:00:28]} 2. c4 {[%emt 0:00:06]} e6 {[%emt 0:00:08]} 3. Nc3 {[%emt 0:00:14]} d5 {[%emt 0:01:27]} 4. Nf3 {[%emt 0:00:41]} Nbd7 {[%emt 0:02:15]} 5. Bf4 {[%emt 0:01:48]} dxc4 {[%emt 0:01:30]} 6. e3 {[%emt 0:02:25]} Nb6 {[%emt 0:01:51] [#]} 7. Bxc4 $1 {[%emt 0:00:20]} Bd6 {[%emt 0:00:14]} 8. Bxd6 {[%emt 0:16:07]} (8. Bg5 {is interesting.} Nxc4 9. Qa4+ Bd7 10. Qxc4 h6 11. Bh4) 8... cxd6 {[%emt 0:00:49]} 9. Bd3 {[%emt 0:00:21]} Nbd5 {[%emt 0:12:30]} 10. Nxd5 {[%emt 0:02:22]} Nxd5 {[%emt 0:00:07]} 11. O-O {[%emt 0:00:06]} O-O {[%emt 0:00:08]} 12. Qd2 {[%emt 0:03:11]} b6 {[%emt 0:02:47]} 13. e4 {[%emt 0:00:10]} Ne7 {[%emt 0:02:54]} 14. Rac1 {[%emt 0:03:59]} Bb7 {[%emt 0:00:38]} 15. Qe2 {[%emt 0:00:12]} Rc8 {[%emt 0:06:05]} 16. Ba6 {[%emt 0:01:43]} Bxa6 {[%emt 0:04:04]} 17. Qxa6 {[%emt 0:03:05]} Rxc1 {[%emt 0:00:21]} 18. Rxc1 {[%emt 0:00:07]} Qa8 {[%emt 0:00:07]} 19. Nd2 {[%emt 0:00:39]} Nc6 {[%emt 0:07:39]} 20. Qa4 {[%emt 0:06:06]} Rc8 {[%emt 0:05:49]} 21. Rc3 {[%emt 0:02:34]} h6 {[%emt 0:07:16]} 22. Qa6 {[%emt 0:00:50]} Rc7 {[%emt 0:10:19]} 23. h3 {[%emt 0:00:49]} Qd8 {[%emt 0:03:57]} 24. Nf3 {[%emt 0:05:05]} Ne7 {[%emt 0:01:50]} 25. Qb5 {[%emt 0:01:03]} Kf8 {[%emt 0:07:34]} 26. Qd3 {[%emt 0:04:08]} Kg8 {[%emt 0:04:03]} 27. Qc2 {[%emt 0:00:39] The position is equal.} Rxc3 {[%emt 0:01:30]} 28. Qxc3 {[%emt 0:00:15]} Qc8 {[%emt 0:00:51]} 29. Qxc8+ {[%emt 0:00:09]} Nxc8 $11 {[%emt 0:00:04][%mdl 4096] Endgame. KN-KN} 30. Kf1 {[%emt 0:00:07]} Kf8 {[%emt 0:00:53]} 31. Ke2 {[%emt 0:01:14]} Ne7 {[%emt 0:01:42]} 32. Ne1 {[%emt 0:00:56]} d5 {[%emt 0:03:02]} 33. f3 {[%emt 0:00:44]} dxe4 {[%emt 0:02:42]} 34. fxe4 {[%emt 0:01:47]} f5 {[%emt 0:01:13]} 35. Kd3 {[%emt 0:01:47]} fxe4+ {[%emt 0:00:32]} 36. Kxe4 {[%emt 0:00:07]} Nd5 {[%emt 0:01:22]} 37. Nd3 {[%emt 0:01:30]} Ke7 {[%emt 0:00:07]} 38. Nf4 {[%emt 0:01:02]} Nf6+ {[%emt 0:00:40] A rather calm draw.   Weighted Error Value: White=0.05 (flawless) /Black=0.05 (flawless) .  Inaccurate:     	White=1     	Black=1      OK:         	White=9     	Black=15} 1/2-1/2

[Event "Chinese League Division-A 2024"]
[Site "Fuling Chongqing"]
[Date "2024.06.28"]
[Round "3.23"]
[White "Chen, Zhi"]
[Black "Lin, Chen"]
[Result "1/2-1/2"]
[ECO "D87"]
[WhiteElo "2164"]
[BlackElo "2484"]
[Annotator "RC"]
[PlyCount "62"]
[EventDate "2024.06.28"]
[EventType "team-tourn"]
[EventCountry "CHN"]
[SourceTitle "playchess.com"]
[Source "ChessBase"]
[SourceQuality "1"]
[TimeControl "40/5400+30:1800+30"]

1. d4 {[%emt 0:00:04]} Nf6 {[%emt 0:00:53]} 2. c4 {[%emt 0:00:13]} g6 {[%emt 0:00:11]} 3. Nc3 {[%emt 0:01:06]} d5 {[%emt 0:00:37]} 4. cxd5 {[%emt 0:00:00]} Nxd5 {[%emt 0:00:05]} 5. e4 {[%emt 0:00:00]} Nxc3 {[%emt 0:00:12]} 6. bxc3 {[%emt 0:00:00]} Bg7 {[%emt 0:00:09]} 7. Bc4 {[%emt 0:00:35]} c5 {[%emt 0:00:22]} 8. Ne2 {[%emt 0:00:17]} Nc6 {[%emt 0:00:16]} 9. Be3 {[%emt 0:01:13]} O-O {[%emt 0:00:16]} 10. O-O {[%emt 0:01:33]} b6 {[%emt 0:00:17]} 11. Bb5 {[%emt 0:05:27]} Na5 {[%emt 0:04:45]} 12. Qd2 {[%emt 0:11:44]} Bb7 {[%emt 0:12:01]} 13. Ng3 {[%emt 0:09:44]} e6 {[%emt 0:01:15]} 14. Rfd1 {[%emt 0:04:02]} cxd4 {[%emt 0:05:43]} 15. cxd4 {[%emt 0:00:11]} Rc8 {[%emt 0:00:06]} 16. Rac1 {[%emt 0:15:02]} Rxc1 {[%emt 0:10:12]} 17. Rxc1 {[%emt 0:00:15]} Qd6 {[%emt 0:00:19]} 18. Rd1 {[%emt 0:12:39]} a6 {[%emt 0:16:03]} 19. Be2 {[%emt 0:01:50]} Rd8 {[%emt 0:05:37]} 20. d5 {[%emt 0:01:36]} exd5 {[%emt 0:03:43]} 21. exd5 {[%emt 0:00:08]} Qxd5 {[%emt 0:00:55]} 22. Qxd5 {[%emt 0:04:32]} Rxd5 {[%emt 0:00:16]} 23. Rxd5 {[%emt 0:00:43]} Bxd5 {[%emt 0:00:04]} 24. Bxa6 {[%emt 0:00:47]} Nc4 {[%emt 0:02:08]} 25. Bxc4 {[%emt 0:00:37]} Bxc4 {[%emt 0:00:08]} 26. a4 {[%emt 0:00:13]} Bb3 {[%emt 0:00:05]} 27. Bxb6 {[%emt 0:00:06]} Bxa4 {[%emt 0:00:05]} 28. Ne2 {[%emt 0:00:26]} Bc6 {[%emt 0:00:11]} 29. Bd4 {[%emt 0:00:13]} Bb5 {[%emt 0:00:05]} 30. Bxg7 {[%emt 0:00:08]} Bxe2 {[%emt 0:00:04]} 31. Bd4 {[%emt 0:00:09]} Bc4 {[%emt 0:00:04]} 1/2-1/2

[Event "Chinese League Division-A 2024"]
[Site "Fuling Chongqing"]
[Date "2024.06.28"]
[Round "3.24"]
[White "Guo, Qi"]
[Black "Zhu, Jiner"]
[Result "1/2-1/2"]
[ECO "E92"]
[WhiteElo "2362"]
[BlackElo "2476"]
[Annotator "TA"]
[PlyCount "84"]
[EventDate "2024.06.28"]
[EventType "team-tourn"]
[EventCountry "CHN"]
[SourceTitle "playchess.com"]
[Source "ChessBase"]
[SourceQuality "1"]
[TimeControl "40/5400+30:1800+30"]

{[%evp 27,84,16,20,26,76,68,72,88,80,47,48,47,45,45,49,50,50,39,24,5,8,10,18,18,18,20,18,16,43,43,43,43,43,47,54,54,54,54,54,54,54,54,54,54,64,64,64,64,64,64,64,64,64,64,64,64,64,0,64]} 1. d4 {[%emt 0:00:04]} Nf6 {[%emt 0:00:12]} 2. c4 {[%emt 0:00:06]} g6 {[%emt 0:00:05]} 3. Nc3 {[%emt 0:00:07]} Bg7 {[%emt 0:00:05]} 4. e4 {[%emt 0:00:06]} d6 {[%emt 0:00:04]} 5. Nf3 {[%emt 0:00:05]} O-O {[%emt 0:00:15]} 6. Be2 {[%emt 0:00:07]} e5 {[%emt 0:00:05]} 7. dxe5 {[%emt 0:04:41]} dxe5 {[%emt 0:00:12]} 8. Qxd8 {[%emt 0:00:06]} Rxd8 {[%emt 0:00:04]} 9. Bg5 {[%emt 0:00:04]} Re8 {[%emt 0:08:15]} 10. Nd5 {[%emt 0:00:12]} Nxd5 {[%emt 0:00:06]} 11. cxd5 {[%emt 0:00:06]} c6 {[%emt 0:00:08]} 12. Bc4 {[%emt 0:00:42]} b5 {[%emt 0:03:59]} 13. Bb3 {[%emt 0:00:42]} Bb7 {[%emt 0:00:11][%cal Bc8b7,Bb7c6,Bc6e4][%mdl 32]} 14. Rc1 {[%emt 0:00:55]} Rc8 {[%emt 0:11:53]} 15. Be3 {[%emt 0:12:34]} Na6 {[%emt 0:10:30] [#]} (15... a5 $11 {remains equal.}) 16. dxc6 $1 $16 {[%emt 0:08:53]} (16. d6 $6 c5 $11) 16... Bxc6 {[%emt 0:00:07][%cal Oa6b4]} 17. Ke2 {[%emt 0:07:18] White is better.} h6 {[%emt 0:12:34]} 18. Rhd1 {[%emt 0:01:13] Threatens to win with Rd6. White has more active pieces.} Bxe4 {[%emt 0:01:10]} 19. Rxc8+ $1 {[%emt 0:01:16]} Rxc8 {[%emt 0:00:05]} 20. Rd7 {[%emt 0:00:16]} Rc7 $1 {[%emt 0:06:59]} 21. Bxf7+ {[%emt 0:01:02]} Kf8 {[%emt 0:00:06]} 22. Be6 {[%emt 0:02:20]} (22. Rxc7 {simplifies} Nxc7 23. Bb3 a6 24. Bc5+) 22... Ke8 {[%emt 0:07:56]} 23. Rxc7 {[%emt 0:06:09]} Nxc7 {[%emt 0:00:05]} 24. Bb3 {[%emt 0:00:09]} a5 {[%emt 0:03:12]} 25. Bb6 {[%emt 0:01:55][%csl LRa5,LRc7]} a4 $1 {[%emt 0:00:18]} 26. Bxa4 {[%emt 0:02:24]} ({Much less strong is} 26. Bxc7 axb3 27. axb3 Kd7 $14) 26... bxa4 {[%emt 0:00:06]} 27. Bxc7 $11 {[%emt 0:00:04][%mdl 4096] Endgame. KBB-KBN} Bd5 {[%emt 0:01:35]} 28. Ke3 {[%emt 0:08:08]} e4 {[%emt 0:01:23]} 29. Ne5 {[%emt 0:01:44]} ({Wrong is} 29. Be5 $2 exf3 30. Bxg7 fxg2 $19) 29... Bxa2 {[%emt 0:00:08]} 30. Kxe4 {[%emt 0:00:07]} Bxe5 {[%emt 0:00:43]} 31. Bxe5 $14 {[%emt 0:00:07] KB-KB} Kf7 {[%emt 0:00:07]} 32. g4 {[%emt 0:00:13]} Be6 {[%emt 0:01:24]} 33. f3 {[%emt 0:00:09][%cal Bf2f3,Bf3g4,Bg4h5][%mdl 32]} h5 {[%emt 0:00:09]} 34. h3 {[%emt 0:00:13]} hxg4 {[%emt 0:00:04]} 35. fxg4 {[%emt 0:00:13]} Bb3 {[%emt 0:00:15]} 36. Kf4 {[%emt 0:00:05]} Bd1 {[%emt 0:01:00]} 37. Kg5 {[%emt 0:00:07]} Be2 {[%emt 0:00:09]} 38. h4 {[%emt 0:00:20]} Bd1 {[%emt 0:00:05]} 39. h5 {[%emt 0:00:12]} gxh5 {[%emt 0:00:03]} 40. gxh5 {[%emt 0:00:00]} Be2 {[%emt 0:00:00]} 41. Bd4 {[%emt 0:00:37]} Bd1 {[%emt 0:00:16]} 42. Be5 {[%emt 0:00:02]} Be2 $1 {[%emt 0:00:47] Weighted Error Value: White=0.05 (flawless) /Black=0.04 (flawless) .  Mistake:       	---       	Black=1      Inaccurate:     	White=1     	Black=1      OK:         	White=14    	Black=8      Best:        	White=1     	Black=4      Strong:       	White=2     	Black=3} 1/2-1/2

[Event "Chinese League Division-A 2024"]
[Site "Fuling Chongqing"]
[Date "2024.06.28"]
[Round "3.25"]
[White "Bai, Xue"]
[Black "Gao, Muziyan"]
[Result "1/2-1/2"]
[ECO "B32"]
[WhiteElo "2114"]
[BlackElo "1943"]
[Annotator "RC"]
[PlyCount "81"]
[EventDate "2024.06.28"]
[EventType "team-tourn"]
[EventCountry "CHN"]
[SourceTitle "playchess.com"]
[Source "ChessBase"]
[SourceQuality "1"]
[TimeControl "40/5400+30:1800+30"]

1. e4 {[%emt 0:00:03]} c5 {[%emt 0:00:07]} 2. Nf3 {[%emt 0:00:06]} Nc6 {[%emt 0:00:08]} 3. d4 {[%emt 0:00:05]} cxd4 {[%emt 0:00:06]} 4. Nxd4 {[%emt 0:00:05]} e5 {[%emt 0:01:07]} 5. Nb5 {[%emt 0:00:37]} d6 {[%emt 0:00:08]} 6. N1c3 {[%emt 0:00:07]} a6 {[%emt 0:00:08]} 7. Na3 {[%emt 0:00:05]} Be7 {[%emt 0:00:08]} 8. Nd5 {[%emt 0:06:29]} Nf6 {[%emt 0:01:18]} 9. Nxf6+ {[%emt 0:05:44]} Bxf6 {[%emt 0:00:09]} 10. Nc4 {[%emt 0:02:43]} O-O {[%emt 0:23:34]} 11. Be3 {[%emt 0:03:37]} Nd4 {[%emt 0:21:32]} 12. c3 {[%emt 0:01:52]} b5 {[%emt 0:00:19]} 13. cxd4 {[%emt 0:03:15]} exd4 {[%emt 0:02:12]} 14. Bxd4 {[%emt 0:00:29]} bxc4 {[%emt 0:00:08]} 15. Bxc4 {[%emt 0:09:03]} Qa5+ {[%emt 0:00:13]} 16. Kf1 {[%emt 0:00:12]} Be6 {[%emt 0:03:01]} 17. b3 {[%emt 0:08:42]} Bxc4+ {[%emt 0:19:14]} 18. bxc4 {[%emt 0:00:09]} Bxd4 {[%emt 0:01:15]} 19. Qxd4 {[%emt 0:01:34]} Rfc8 {[%emt 0:00:23]} 20. Ke2 {[%emt 0:05:58]} Rc6 {[%emt 0:06:47]} 21. f3 {[%emt 0:07:04]} Rac8 {[%emt 0:05:36]} 22. Rhc1 {[%emt 0:00:10]} Qh5 {[%emt 0:01:51]} 23. h3 {[%emt 0:02:16]} Qg6 {[%emt 0:00:15]} 24. Kf2 {[%emt 0:03:02]} Qe6 {[%emt 0:06:08]} 25. Rab1 {[%emt 0:00:08]} h5 {[%emt 0:00:11]} 26. Rb4 {[%emt 0:04:22]} a5 {[%emt 0:00:20]} 27. Rb5 {[%emt 0:09:32]} Rxc4 {[%emt 0:02:14]} 28. Rxc4 {[%emt 0:00:06]} Rxc4 {[%emt 0:00:05]} 29. Qd2 {[%emt 0:00:39]} a4 {[%emt 0:01:32]} 30. Rb6 {[%emt 0:02:31]} Qe5 {[%emt 0:00:39]} 31. Rxd6 {[%emt 0:09:32]} Qc5+ {[%emt 0:00:15]} 32. Kg3 {[%emt 0:00:04]} Rc2 {[%emt 0:01:01]} 33. Qd5 {[%emt 0:00:11]} Qf2+ {[%emt 0:03:14]} 34. Kf4 {[%emt 0:00:06]} Rc5 {[%emt 0:00:17]} 35. Qa8+ {[%emt 0:01:13]} Kh7 {[%emt 0:00:05]} 36. Rd5 {[%emt 0:00:36]} Qh4+ {[%emt 0:00:36]} 37. Ke3 {[%emt 0:02:45]} Qe1+ {[%emt 0:00:11]} 38. Kf4 {[%emt 0:00:06]} Qh4+ {[%emt 0:00:15]} 39. Ke3 {[%emt 0:00:23]} Qe1+ {[%emt 0:02:46]} 40. Kf4 {[%emt 0:00:00]} Qh4+ {[%emt 0:00:00]} 41. Ke3 {[%emt 0:00:45]} 1/2-1/2

[Event "Chinese League Division-A 2024"]
[Site "Fuling Chongqing"]
[Date "2024.06.28"]
[Round "3.26"]
[White "Bu, Xiangzhi"]
[Black "Bai, Jinshi"]
[Result "1-0"]
[ECO "D32"]
[WhiteElo "2689"]
[BlackElo "2564"]
[Annotator "TA"]
[PlyCount "51"]
[EventDate "2024.06.28"]
[EventType "team-tourn"]
[EventCountry "CHN"]
[SourceTitle "playchess.com"]
[Source "ChessBase"]
[SourceQuality "1"]
[TimeControl "40/5400+30:1800+30"]

{[%evp 12,51,50,21,16,34,50,33,26,37,42,27,32,0,29,4,41,53,43,68,56,57,38,53,114,116,183,210,195,210,203,34,34,43,37,31,614,596,1312,1306,1412,521]} 1. d4 {[%emt 0:00:06]} d5 {[%emt 0:00:15]} 2. c4 {[%emt 0:00:25]} e6 {[%emt 0:00:13]} 3. Nc3 {[%emt 0:02:31]} c5 {[%emt 0:00:25]} 4. cxd5 {[%emt 0:00:10]} exd5 {[%emt 0:00:12]} 5. Nf3 {[%emt 0:00:08]} Nf6 {[%emt 0:00:14]} 6. Bg5 {[%emt 0:00:16]} Be6 {[%emt 0:00:15]} 7. g3 {[%emt 0:03:02]} Nc6 {[%emt 0:00:32]} 8. Bg2 {[%emt 0:00:11]} h6 {[%emt 0:01:22]} 9. Bxf6 {[%emt 0:00:30]} Qxf6 {[%emt 0:00:07] White is slightly better.} 10. O-O {[%emt 0:00:16]} O-O-O {[%emt 0:02:00][%cal Rc6d4]} 11. Rc1 {[%emt 0:00:35]} Kb8 {[%emt 0:01:16]} 12. e3 {[%emt 0:01:35]} g5 {[%emt 0:24:26][%cal Bg7g5,Bg5g4][%mdl 32]} 13. Qa4 {[%emt 0:22:46]} g4 {[%emt 0:15:39]} 14. Nd2 {[%emt 0:00:55]} cxd4 {[%emt 0:05:46]} 15. Nb5 {[%emt 0:00:27][%cal Oc1c6] Strongly threatening Rxc6!} a6 $1 {[%emt 0:00:21] [#]} 16. Rxc6 $1 {[%emt 0:13:58]} axb5 {[%emt 0:00:16]} 17. Qxb5 {[%emt 0:00:09] Nb3 would now be deadly.} Qe7 {[%emt 0:04:41]} (17... dxe3 $14 18. Nb3 (18. fxe3 Qe7 $14) 18... Bd7 19. Qxb7+ Kxb7 20. Rxf6 exf2+ 21. R6xf2 Be6) 18. Nb3 $16 {[%emt 0:05:01] Hoping for Nc5. White is much more active.} (18. exd4 Bd7 19. Rfc1 Bxc6 20. Rxc6 Rg8 $14 (20... Qb4 21. Rb6 $11)) 18... dxe3 {[%emt 0:05:19] [#]} (18... Qb4 $16 {might work better.} 19. Qxb4 (19. Nxd4 $2 Qxb5 20. Nxb5 bxc6 $19) 19... Bxb4) 19. Nc5 $1 $18 {[%emt 0:01:09] Threatens to win with Na6+.} (19. fxe3 $6 Qb4 20. Rb6 Qxb5 21. Rxb5 Rd7 $14) 19... Rc8 {[%emt 0:23:10]} (19... exf2+ 20. Rxf2 Rc8 21. Bxd5 Rxc6 22. Bxc6 $18) 20. Na6+ {[%emt 0:11:02]} (20. Rd6 $2 exf2+ (20... Qxd6 21. Qxb7#) (20... Rxc5 $2 21. Qxc5 exf2+ 22. Rxf2 $19) 21. Rxf2 Rxc5 (21... Qxd6 22. Qxb7#) 22. Qxc5 Qxd6 $19) 20... Ka8 {[%emt 0:04:37]} 21. Rxc8+ $2 {[%emt 0:00:20]} (21. Rb6 $18 {[%cal Ob5a5] Black must now prevent Qa5!} exf2+ 22. Kh1) 21... Bxc8 $14 {[%emt 0:00:05]} 22. Rc1 $40 {[%emt 0:00:24][%mdl 128] Black needs to defend precisely.} exf2+ {[%emt 0:06:45]} 23. Kf1 {[%emt 0:01:56] Some like it hot} Bd7 $2 {[%emt 0:00:09][%mdl 8192] [#]} (23... Qe3 $14 24. Rxc8+ Ka7) 24. Qa5 $1 $18 {[%emt 0:01:36] Intending Nc7+ and mate. White is clearly winning.} ({Weaker is} 24. Qxd5 Bc6 25. Qc4 Bxg2+ 26. Kxg2 Qe5 $11 (26... bxa6 27. Qxa6+ Qa7 28. Rc8#)) 24... Bc6 {[%emt 0:00:48]} 25. Bxd5 {[%emt 0:00:29]} Qe3 {[%emt 0:02:50]} 26. Nb4+ {[%emt 0:00:05] Weighted Error Value: White=0.13 (very precise) /Black=0.38.  Loses game:     	---       	Black=1      Missed win:     	White=1     	---        Mistake:       	---       	Black=2      Inaccurate:     	White=1     	Black=3      OK:         	White=8     	Black=5      Best:        	White=1     	Black=2      Strong:       	White=2     	Black=1      Brilliant:      	White=1     	---} (26. Nc5+ $142 Kb8 27. Na6+ Ka8 28. Nb4+ Qa7 29. Qd8+ Qb8 30. Nxc6 Qxd8 31. Nxd8) 1-0

[Event "Chinese League Division-A 2024"]
[Site "Fuling Chongqing"]
[Date "2024.06.28"]
[Round "3.27"]
[White "Kong, Xiangrui"]
[Black "Zeng, Chongsheng"]
[Result "1/2-1/2"]
[ECO "B33"]
[WhiteElo "2439"]
[BlackElo "2578"]
[Annotator "TA"]
[PlyCount "60"]
[EventDate "2024.06.28"]
[EventType "team-tourn"]
[EventCountry "CHN"]
[SourceTitle "playchess.com"]
[Source "ChessBase"]
[SourceQuality "1"]
[TimeControl "40/5400+30:1800+30"]

{[%evp 25,60,49,68,67,64,54,52,52,67,38,47,49,52,64,60,44,39,58,68,62,50,47,64,52,53,46,70,31,52,50,50,0,81,0,53,0,59]} 1. e4 {[%emt 0:00:04]} c5 {[%emt 0:00:26]} 2. Nf3 {[%emt 0:00:09]} Nc6 {[%emt 0:00:52]} 3. d4 {[%emt 0:00:31]} cxd4 {[%emt 0:00:06]} 4. Nxd4 {[%emt 0:00:03]} Nf6 {[%emt 0:00:36]} 5. Nc3 {[%emt 0:00:15]} e5 {[%emt 0:00:05]} 6. Ndb5 {[%emt 0:00:49]} d6 {[%emt 0:00:09]} 7. Bg5 {[%emt 0:00:20]} a6 {[%emt 0:00:07]} 8. Na3 {[%emt 0:00:08]} b5 {[%emt 0:00:06]} 9. Bxf6 {[%emt 0:01:06]} gxf6 {[%emt 0:00:04]} 10. Nd5 {[%emt 0:00:07]} f5 {[%emt 0:00:07]} 11. g3 {[%emt 0:00:13]} Bg7 {[%emt 0:13:27]} 12. exf5 {[%emt 0:01:23]} Bxf5 {[%emt 0:05:53]} 13. Bg2 {[%emt 0:00:10]} Rc8 {[%emt 0:01:02]} 14. c3 {[%emt 0:05:02]} O-O {[%emt 0:05:46]} 15. O-O {[%emt 0:16:12]} Ne7 {[%emt 0:01:14]} 16. Nc2 {[%emt 0:05:27][%cal Ba3c2,Bc2b4,Bb4d5][%mdl 32] White is slightly better.} Be6 {[%emt 0:02:44]} 17. Ncb4 {[%emt 0:05:09]} Nxd5 {[%emt 0:05:14]} 18. Nxd5 {[%emt 0:01:00]} f5 {[%emt 0:07:30]} 19. a4 {[%emt 0:01:05]} e4 {[%emt 0:01:07][%cal Ob5b4]} 20. axb5 {[%emt 0:18:32]} axb5 {[%emt 0:00:32]} 21. f3 {[%emt 0:03:42]} exf3 {[%emt 0:02:15]} 22. Qxf3 {[%emt 0:00:42]} Kh8 {[%emt 0:02:28]} 23. Kh1 {[%emt 0:08:19]} Rc5 {[%emt 0:03:19]} 24. Rad1 {[%emt 0:11:20]} Be5 {[%emt 0:03:31]} 25. Qe3 {[%emt 0:04:39]} Qe8 {[%emt 0:03:20]} 26. Qh6 {[%emt 0:03:01]} Bg7 {[%emt 0:02:00]} 27. Qf4 {[%emt 0:00:41]} Be5 {[%emt 0:00:15]} 28. Qh6 {[%emt 0:00:45]} Bg7 {[%emt 0:00:08]} 29. Qf4 {[%emt 0:01:16] White is much more active.} Be5 $1 {[%emt 0:00:06] This pair of bishops is nice.} 30. Qh6 {[%emt 0:00:06]} Bg7 {[%emt 0:00:06] Weighted Error Value: White=0.20 (precise) /Black=0.07 (flawless) .  Inaccurate:     	White=3     	---        OK:         	White=2     	Black=7      Strong:       	---       	Black=1} 1/2-1/2

[Event "Chinese League Division-A 2024"]
[Site "Fuling Chongqing"]
[Date "2024.06.28"]
[Round "3.28"]
[White "Liu, Yan"]
[Black "Ma, Qun"]
[Result "1/2-1/2"]
[ECO "D19"]
[WhiteElo "2573"]
[BlackElo "2643"]
[Annotator "TA"]
[PlyCount "61"]
[EventDate "2024.06.28"]
[EventType "team-tourn"]
[EventCountry "CHN"]
[SourceTitle "playchess.com"]
[Source "ChessBase"]
[SourceQuality "1"]
[TimeControl "40/5400+30:1800+30"]

{[%evp 23,61,19,34,26,38,29,40,17,26,0,0,-23,-20,-19,-25,-34,-14,-14,0,0,0,0,0,0,0,0,0,0,0,0,0,0,0,0,0,0,0,0,0,0]} 1. d4 {[%emt 0:00:06]} d5 {[%emt 0:00:31]} 2. c4 {[%emt 0:00:32]} c6 {[%emt 0:00:20]} 3. Nf3 {[%emt 0:01:17]} Nf6 {[%emt 0:00:09]} 4. Nc3 {[%emt 0:01:54]} dxc4 {[%emt 0:00:17]} 5. a4 {[%emt 0:00:09]} Bf5 {[%emt 0:00:23]} 6. e3 {[%emt 0:00:32]} e6 {[%emt 0:00:22]} 7. Bxc4 {[%emt 0:00:15]} Bb4 {[%emt 0:00:09]} 8. O-O {[%emt 0:00:44]} O-O {[%emt 0:00:20]} 9. Qe2 {[%emt 0:01:20]} Bg6 {[%emt 0:00:10]} 10. Ne5 {[%emt 0:00:16]} Nbd7 {[%emt 0:00:09]} 11. Nxg6 {[%emt 0:00:49]} hxg6 {[%emt 0:00:08]} 12. Rd1 {[%emt 0:03:51]} Qe7 {[%emt 0:00:25]} 13. e4 {[%emt 0:10:47]} e5 {[%emt 0:00:23]} 14. d5 {[%emt 0:01:09]} Nb6 {[%emt 0:00:13]} 15. dxc6 {[%emt 0:06:31] White is slightly better.} Nxc4 {[%emt 0:00:08]} 16. Qxc4 {[%emt 0:00:18]} bxc6 {[%emt 0:01:36]} 17. Qxc6 {[%emt 0:24:57]} Rfc8 $1 {[%emt 0:03:43]} 18. Qb5 {[%emt 0:01:12]} Bxc3 {[%emt 0:02:13]} 19. bxc3 {[%emt 0:00:07]} Nxe4 {[%emt 0:00:56]} 20. Re1 {[%emt 0:00:11] The position is equal.} Nxc3 {[%emt 0:10:43][%cal Be4c3,Bc3a4,Ba4b6,Bb6c4][%mdl 32]} 21. Qxe5 {[%emt 0:00:15]} Qxe5 {[%emt 0:00:17]} 22. Rxe5 {[%emt 0:00:08]} Nxa4 {[%emt 0:00:21]} 23. Be3 {[%emt 0:01:10]} Nb6 {[%emt 0:00:46]} 24. Rea5 {[%emt 0:00:11][%cal Oe3b6] [#] Bxb6! is the strong threat.} Nc4 {[%emt 0:00:16]} 25. Rxa7 {[%emt 0:00:07]} Rxa7 {[%emt 0:00:02]} 26. Rxa7 {[%emt 0:00:07]} Nxe3 {[%emt 0:00:11]} 27. fxe3 $11 {[%emt 0:00:05] KR-KR} f6 {[%emt 0:00:06]} 28. Kf2 {[%emt 0:00:07]} Kh7 {[%emt 0:00:04]} 29. Kf3 {[%emt 0:00:06]} g5 {[%emt 0:00:04]} 30. h3 {[%emt 0:00:06]} Kg6 {[%emt 0:00:03]} 31. Rb7 {[%emt 0:00:05] Weighted Error Value: White=0.05 (flawless) /Black=0.03 (flawless) .  Inaccurate:     	White=1     	---        OK:         	White=9     	Black=6      Best:        	---       	Black=2      Strong:       	---       	Black=1} 1/2-1/2